{"text_format":"1","workbook":"xlsx","n_sheets":4,"sheets":["FRésultats","Distances","Classification","RS vétérans"],"not_rendered":{"charts":0,"images":1,"macros":1,"external_links":1,"defined_names":11,"comments":0,"pivot_tables":0},"unopened":[],"bounds":{"document_bytes":16777216,"sheet_cells":100000,"rows_first":2000,"rows_last":500,"rows_between":2000,"halvings":0,"cell_chars":16384,"cell_head_chars":4096},"cells_cut":0,"cells_raw":0,"read":"whole","date_system":"1900"}

{"sheet":"FRésultats","index":0,"n_rows":60,"n_cols":10,"rows_kept":60,"cut":false,"hidden":false,"merged":[[59,1,59,4],[16,0,16,1],[54,0,54,1],[19,5,19,8],[27,0,27,1],[28,0,28,1],[25,0,25,1],[26,0,26,1],[47,5,48,7],[49,5,50,7],[58,0,58,8],[54,4,54,8],[55,4,56,8],[26,3,26,8],[21,5,22,8],[17,3,17,8],[0,3,0,8],[0,0,0,2],[14,3,14,8],[15,3,15,8],[16,3,16,8],[6,5,6,8],[15,0,15,1],[2,7,2,9],[8,0,8,4],[8,5,8,8],[12,0,12,1],[9,0,9,1],[10,0,11,4],[12,3,12,8],[13,3,13,8],[55,0,56,1],[10,5,11,8],[41,5,42,7],[43,5,44,7],[24,0,24,1],[24,3,24,8],[14,0,14,1],[13,0,13,1],[50,1,50,2],[45,1,45,2],[44,1,44,2],[38,1,38,2],[43,3,43,4],[50,3,50,4],[17,0,17,1],[46,1,46,2],[37,5,38,7],[39,5,40,7],[47,3,47,4],[37,3,37,4],[42,3,42,4],[39,3,39,4],[45,5,46,7],[34,1,34,2],[36,3,36,4],[33,1,33,2],[49,3,49,4],[48,3,48,4],[44,3,44,4],[46,3,46,4],[45,3,45,4],[47,1,47,2],[48,1,48,2],[37,1,37,2],[49,1,49,2],[40,1,40,2],[41,1,41,2],[42,1,42,2],[43,1,43,2],[35,5,36,7],[33,5,34,7],[30,5,31,7],[34,3,34,4],[52,0,52,8],[30,8,31,8],[41,3,41,4],[40,3,40,4],[33,3,33,4],[38,3,38,4],[35,3,35,4],[39,1,39,2],[30,3,31,4],[35,1,35,2],[36,1,36,2],[30,0,31,2],[30,9,31,9],[6,0,6,3],[4,0,4,9],[27,3,27,8],[19,0,19,4],[23,3,23,8],[21,0,22,4],[23,0,23,1],[28,3,28,8],[25,3,25,8]]}
["LIGUE MEDITERRANEENNE DE BILLARD",null,null,"CHALLENGE VETERAN 2019 - 2020",null,null,null,null,null,"Ed 5"]
[]
[null,null,null,null,"Ecrite la date ici : "]
[]
["Il y a 3 Volets : Rouge = F. Résultats - Bleu = Classification Libre et 3 Bandes - Vert = Distance "]
[]
["Ecrire le mode de jeux ici "]
[]
["ECRIRE  ICI LE NOM DU CLUB RECEVEUR",null,null,null,null,"Total Points Match"]
[]
[" ",null,null,null,null,{"$f":"SUM(I34+I36+I38+I40+I42+I44+I46+I48+I50)","v":0}]
[]
["Ecrire le nom du Joueur 1 de l'équipe receveuse"]
["Ecrire le nom du Joueur 2 de l'équipe receveuse"]
["Ecrire le nom du Joueur 3 de l'équipe receveuse"]
["Ecrire le nom du Joueur 4 de l'équipe receveuse"]
["Ecrire le nom du Joueur 5 de l'équipe receveuse"]
["Ecrire le nom du Joueur 6 de l'équipe receveuse"]
[]
["ECRIRE  ICI LE NOM DU CLUB VISITEUR",null,null,null,null,"Total Points Match"]
[]
[null,null,null,null,null,{"$f":"SUM(I35+I37+I39+I41+I43+I45+I47+I49+I51)","v":0}]
[]
["Ecrire le nom du Joueur 1 de l'équipe visiteuse"]
["Ecrire le nom du Joueur 2 de l'équipe visiteuse"]
["Ecrire le nom du Joueur 3 de l'équipe visiteuse"]
["Ecrire le nom du Joueur 4 de l'équipe visiteuse"]
["Ecrire le nom du Joueur 5 de l'équipe visiteuse"]
["Ecrire le nom du Joueur 6 de l'équipe visiteuse"]
[]
["Nom des joueurs",null,null,"Nombre de Points",null,"Nombre de reprises",null,null,"Pts Match","Moy Automatique"]
[]
[]
["Joueur club receveur ",null,null,null,null,null,null,null,null,{"$f":"SUM(D34/F34)","v":{"$error":"#DIV/0!"}}]
["Joueur club visiteur","g",null,null,null,null,null,null,null,{"$f":"SUM(D35/F34)","v":{"$error":"#DIV/0!"}}]
["Joueur club receveur ",null,null,null,null,null,null,null,null,{"$f":"SUM(D36/F36)","v":{"$error":"#DIV/0!"}}]
["Joueur club visiteur",null,null,null,null,null,null,null,null,{"$f":"SUM(D37/F36)","v":{"$error":"#DIV/0!"}}]
["Joueur club receveur ",null,null,null,null,null,null,null,null,{"$error":"#DIV/0!"}]
["Joueur club visiteur",null,null,null,null,null,null,null,null,{"$f":"SUM(D39/F38)","v":{"$error":"#DIV/0!"}}]
["Joueur club receveur ",null,null,null,null,null,null,null,null,{"$error":"#DIV/0!"}]
["Joueur club visiteur",null,null,null,null,null,null,null,null,{"$f":"SUM(D41/F40)","v":{"$error":"#DIV/0!"}}]
["Joueur club receveur ",null,null,null,null,null,null,null,null,{"$error":"#DIV/0!"}]
["Joueur club visiteur",null,null,null,null,null,null,null,null,{"$f":"SUM(D43/F42)","v":{"$error":"#DIV/0!"}}]
["Joueur club receveur ",null,null,null,null,null,null,null,null,{"$error":"#DIV/0!"}]
["Joueur club visiteur",null,null,null,null,null,null,null,null,{"$f":"SUM(D45/F44)","v":{"$error":"#DIV/0!"}}]
["Joueur club receveur ",null,null,null,null,null,null,null,null,{"$error":"#DIV/0!"}]
["Joueur club visiteur",null,null,null,null,null,null,null,null,{"$f":"SUM(D47/F46)","v":{"$error":"#DIV/0!"}}]
["Joueur club receveur ",null,null,null,null,null,null,null,null,{"$error":"#DIV/0!"}]
["Joueur club visiteur",null,null,null,null,null,null,null,null,{"$f":"SUM(D49/F48)","v":{"$error":"#DIV/0!"}}]
["Joueur club receveur ",null,null,null,null,null,null,null,null,{"$error":"#DIV/0!"}]
["Joueur club visiteur",null,null,null,null,null,null,null,null,{"$f":"SUM(D51/F50)","v":{"$error":"#DIV/0!"}}]
[]
["Sans limitation de reprise - Match G. 2Pts : Match P. 0 Pt :  avec Prolongation si match nul"]
[]
["Nom du Responsable Equipe Recevante",null,null,null,"Nom du Responsable Equipe Visiteuse"]
[]
[]
[]
["A renvoyer une fois remplie par email uniquement à :   "]
[null,"serge.herreman@gmail.com",null,null,null,null,null,null,null,"dy"]

{"sheet":"Distances","index":1,"n_rows":20,"n_cols":6,"rows_kept":20,"cut":false,"hidden":false,"merged":[[6,5,7,5],[5,0,11,0],[12,0,17,0],[1,0,1,4],[2,0,2,4],[3,0,4,0],[3,1,4,1],[3,2,3,3],[3,4,4,4],[4,2,4,3]]}
[]
["TABLEAU DES DISTANCES  VETERANS 2018 - 2019"]
["RENCONTRES ET FINALES"]
["Mode de Jeux","NIVEAU","Format",null,"Points"]
[null,null,"Billard"]
["PARTIE LIBRE","MASTERS","GC",3.1,400]
[null,"NATIONALE 1","GC",3.1,200,"Si dépassement; surclassement pour les rencontres suivantes"]
[null,"NATIONALE 3","GC","2,80 / 310","150 / 120"]
[null,"RÉGIONALE 1","PC","2,80 / 310","120 / 100",">6,60"]
[null,"RÉGIONALE 2","PC","2,80 / 310","80 / 70",">4,40"]
[null,"RÉGIONALE 3","PC","2,80 / 310","60 / 50",">2,53"]
[null,"RÉGIONALE 4","PC","2,80 / 310","40 / 30",">1,32"]
["3-BANDES","MASTERS",null,3.1,35]
[null,"NATIONALE 1",null,3.1,30]
[null,"NATIONALE 2",null,3.1,25]
[null,"NATIONALE 3",null,"2,80 / 310","20 / 15"]
[null,"RÉGIONALE 1",null,"2,80 / 310","15 / 13"]
[null,"RÉGIONALE 2",null,"2,80 / 310","13 / 11"]
[]
["A la partie libre les coins sont pour les nationaux G.C. et pour les régionaux P.C."]

{"sheet":"Classification","index":2,"n_rows":372,"n_cols":6,"rows_kept":372,"cut":false,"hidden":false,"merged":[]}
["LICENCE","NOM","Catégorie","Moy 3.10","CLUB","2019-12-02"]
[132348,"ABOUT René","R4",0.56999999999999995,"BILLARD CLUB DE NICE"]
[118650,"ADAM Eddy","R2",2.6,"BILLARD CLUB SISTERONNAIS"]
[149448,"ALESSI Jean Pierre","R3",1.17,"BILLARD CLUB GARDEEN"]
[151459,"ALIBERT Bruno","R3",1.68,"BILLARD CLUB DE NICE"]
[157036,"ALLIGIER Gerard","R3",1.33,"BILLARD CLUB DE LA BAIE"]
[159130,"ALVAREZ PHILIPPE","R2",1.97,"BILLARD CLUB DE NICE"]
[152035,"ALVISET GUY","R3",1.05,"BILLARD CLUB SAUSSETOIS"]
[155531,"AMOUROUX Luc","R4",0.82,"BILLARD CLUB GARDEEN"]
[21818,"ANDRY Jean-François","R2",1.92,"BILLARD AMATEUR ROGNAC"]
[21820,"ANNESTAY Jacques","R2",1.74,"BILLARD CLUB SISTERONNAIS"]
[21821,"ANTONIN Alain","N3",6.59,"BILLARD CLUB CAVAILLONNAIS"]
[134389,"ARMAND Anthony","R4",0.8,"BILLARD CLUB VINONNAIS"]
[133645,"ARNOUX Thierry","R3",1.6,"BILLARD CLUB VINONNAIS"]
[21829,"ARPIN Gilbert","R2",2.27,"BILLARD CLUB AVIGNONNAIS"]
[166320,"ATHLANI Michel","R3",0.99,"SPORT AMAT.DE BILLARD MARSEILLAIS"]
[148204,"AUBERT-ROUECHE Lydia","R3",1.54,"BILLARD CLUB SISTERONNAIS"]
[106513,"AUDIBERT Jean Pierre","R2",2.4,"SALON BILLARD CLUB"]
[138454,"AUDOUIN Jean-Jacques","R3",0.96,"BILLARD CLUB SAUSSETOIS"]
[21838,"AYOT Alexandre","N3",5.45,"SALON BILLARD CLUB"]
[115304,"BAILLON Jean","R3",1.1499999999999999,"B.C. DE MANDELIEU LA NAPOULE"]
[136073,"BAILLY Francis","R1",3.26,"S. S. A. B. D AIX EN PROVENCE"]
[150101,"BALESTRI Charly","R2",3.13,"B.C. DE MANDELIEU LA NAPOULE"]
[153554,"BALESTRI MAURICE","R3",1.07,"B.C. DE MANDELIEU LA NAPOULE"]
[23184,"BALLIGAND Serge","N3",4.28,"CAR BILLARD ROQUEBRUNE"]
[149693,"BANO Serge","R4",0.76,"BILLARD CLUB CARPENTRASSIEN"]
[109917,"BARBANNEAU Frédéric","R1",3.67,"SALON BILLARD CLUB"]
[18535,"BARDET Jean-Pierre","R1",4.49,"BILLARD CLUB GARDEEN"]
[122300,"BARRALLON Jean-Paul","R2",2.93,"BILLARD CLUB GARDEEN"]
[115343,"BARTOLETTI  Julien","R1",4.5,"SPORT AMAT.DE BILLARD MARSEILLAIS","Classé ligue"]
[129911,"BASSIGNANA Robert","R3",1.31,"BILLARD CLUB GARDEEN"]
[103568,"BASSOUL Jean-Marie","R3",1.75,"BILLARD CLUB CARPENTRASSIEN"]
[21860,"BAYARD Jean Claude","R3",0.88,"BILLARD CLUB CAVAILLONNAIS"]
[21863,"BEDOC Jacques","R2",2.21,"CLUB BILLARD ISTREEN"]
[132789,"BELTRITTI Jean Yves","R3",1.56,"BILLARD CLUB VINONNAIS"]
[21872,"BENAVIDES Claude","R2",3.06,"SALON BILLARD CLUB"]
[159238,"BENIER Patrick","R4",0.85,"BILLARD CLUB GARDEEN"]
[125945,"BERNAT Jean Pierre","R2",1.84,"BILLARD CLUB GARDEEN"]
[21884,"BERTRAND-CADI Yves","R3",1.08,"BILLARD CLUB ORANGEOIS"]
[16451,"BETTES Cécile","R3",1.5,"SALON BILLARD CLUB"]
[159202,"BIARD André","R4",0.55000000000000004,"CLUB BILLARD ISTREEN"]
[125917,"BIDDAU François","R2",2.2999999999999998,"CLUB BILLARD ISTREEN"]
[141828,"BILDIK Mehmet ","N3",5.61,"SPORT AMAT.DE BILLARD MARSEILLAIS"]
[136075,"BLERVACQUE Alain","R3",0.99,"BILLARD CLUB VINONNAIS"]
[21894,"BONELLO Lucien","R3",0.94,"BILLARD AMATEUR ROGNAC"]
[150422,"BONNEMAISON Denis","R4",0.69,"CLUB BILLARD ISTREEN"]
[21899,"BONTEMPS Pierre","R3",1.22,"B.C. DE MANDELIEU LA NAPOULE"]
[21900,"BONTOUX Max","R1",3.21,"BILLARD CLUB FARENC"]
[149287,"BORDES Bernard","R1",4.54,"CAR BILLARD ROQUEBRUNE"]
[149288,"BORDES Catherine","R4",0.51,"CAR BILLARD ROQUEBRUNE"]
[160000,"BOSSOT Jean","R3",1.76,"ACADEMIE DE BILLARD DE BOLLENE"]
[12645,"BOULANDET Alain","R2",1.69,"ACADEMIE DE BILLARD DE MENTON"]
[155529,"BOULANT Claude","R2",2.27,"BILLARD CLUB DE LA BAIE"]
[149613,"BOVET Michel","R3",0.82,"CAR BILLARD ROQUEBRUNE"]
[16411,"BRAYER Denis","N3",4.87,"BILLARD CLUB AVIGNONNAIS"]
[21918,"BREDAT René","N3",3.29,"BILLARD CLUB SISTERONNAIS"]
[114355,"BREUGGHE Jean","R4",0.65,"BILLARD CLUB CARPENTRASSIEN"]
[113104,"BRIAND Alain","R2",2.87,"SPORT AMAT.DE BILLARD MARSEILLAIS"]
[21920,"BRIOIT Dominique","R2",2.31,"ACADEMIE DE BILLARD DE MENTON"]
[21922,"BRIOSNE Pascal","R1",2.63,"S. S. A. B. D AIX EN PROVENCE"]
[106514,"BRIQUET Eric","R4",0.85,"SALON BILLARD CLUB"]
[114733,"BRUANT Sylvain","R2",2.2999999999999998,"BILLARD CLUB ORANGEOIS"]
[112311,"CACHO Didier","R1",3.6,"BILLARD CLUB FARENC"]
[21944,"CAO Huu Tuoi","R1",4.2300000000000004,"CLUB BILLARD ISTREEN"]
[20702,"CARBONELLE Dominique","R3",1.0900000000000001,"SALON BILLARD CLUB"]
[148607,"CARRARA Felix","R4",0.74,"B.C. DE MANDELIEU LA NAPOULE"]
[152346,"CARRE Pierre","R4",0.82,"B.C. DE MANDELIEU LA NAPOULE"]
[130701,"CARRION Jean Philippe","R1",3.41,"ACADEMIE MUNICIPALE DE BILLARD"]
[21952,"CASTA Hélène","R4",0.8,"BILLARD CLUB SISTERONNAIS"]
[21953,"CASTA Jean","R2",2.29,"BILLARD CLUB SISTERONNAIS"]
[112516,"CESARINI Jean Paul ","N3",3.9,"BILLARD CLUB VINONNAIS"]
[118684,"CESARO Jean Claude","R2",1.53,"BILLARD CLUB BERROIS"]
[161620,"CHABOUD Jacques","R4",0.4,"BILLARD CLUB GARDEEN","N.C. sera classé ligue après 2 tournois"]
[114501,"CHADELAT Bernard","R3",1.61,"BILLARD CLUB VINONNAIS"]
[21967,"CHARBIT Jean-Marc","R2",2.65,"BILLARD CLUB DE NICE"]
[21969,"CHARLOT Allan","N3",8.43,"ACADEMIE DE BILLARD DE BOLLENE"]
[21971,"CHARTIER Yves","R3",1.29,"BILLARD AMATEUR ROGNAC"]
[21972,"CHAUVIN Jean-Paul","R2",1.98,"BILLARD CLUB SAUSSETOIS"]
[12793,"CHESNAIS Christophe","R1",3.49,"ACADEMIE DE BILLARD DE MENTON"]
[160332,"CHICARD Alain","R4",0.68,"BILLARD CLUB CAVAILLONNAIS"]
[108854,"CHUZEVILLE Gilles","R2",2.76,"BILLARD CLUB SISTERONNAIS"]
[120275,"CLAICHE Gérard","R4",0.86,"BILLARD CLUB DE LA BAIE"]
[148126,"CLAUDON Philippe","R4",0.6,"BILLARD CLUB DE NICE"]
[129497,"CLEMENT Gérard","R4",0.84,"BILLARD CLUB SAUSSETOIS"]
[129909,"CLUZEL Jean Loup","R4",0.69,"BILLARD CLUB GARDEEN"]
[113219,"COLLEMINE Bernard","R2",2.1800000000000002,"BILLARD CLUB SAUSSETOIS"]
[127970,"CONSOLIN Daniel","R2",2.16,"BILLARD CLUB BERROIS"]
[21985,"COPPIN Jean-Michel","R3",1.1299999999999999,"ACADEMIE DE BILLARD DE BOLLENE"]
[106512,"CORDONNIER Roger","R2",1.63,"ACADEMIE DE BILLARD DE BOLLENE"]
[12844,"CORNIOU Jean-Claude","R3",1.25,"BILLARD CLUB SISTERONNAIS"]
[148136,"COSTAZ Alain","R4",0.76,"BILLARD CLUB DE LA BAIE"]
[125938,"COSTE Philippe","R3",1.41,"ACAD.BILLARD ST RAPHAEL"]
[120419,"COUPE Gilbert","R2",2.38,"BILLARD CLUB PHOCEEN"]
[16445,"CREUGNY Laurent","R1",3.4,"ACADEMIE DE BILLARD DE BOLLENE"]
[152067,"CROUZET Jean Andre","R3",1.36,"ACADEMIE DE BILLARD DE BOLLENE"]
[144718,"D ANTONIO Jérôme","R2",2.42,"BILLARD CLUB AVIGNONNAIS"]
[22002,"DAMON Gérard","R3",1.06,"BILLARD CLUB DE NICE"]
[155526,"DAVID Thierry","R2",1.57,"BILLARD CLUB SISTERONNAIS"]
[140113,"DE HAAN Patrick","R2",2.2400000000000002,"ACAD.BILLARD ST RAPHAEL"]
[163348,"DE LOOSE Félix","R2",1.93,"BILLARD CLUB VINONNAIS"]
[119889,"DEFFE Michel","R3",1.39,"BILLARD CLUB ARLESIEN"]
[22011,"DEFILLE Lucien","R3",1.8,"BILLARD CLUB CAVAILLONNAIS"]
[22012,"DEFRESNE Jean","R3",1.23,"CAR BILLARD ROQUEBRUNE"]
[20635,"DEFRETIN Joël","N1",20.69,"BILLARD CLUB GARDEEN"]
[16772,"DEL MEDICO Jean","R3",1.81,"ACAD.BILLARD ST RAPHAEL"]
[22013,"DELAGE Jean-Marie","R2",1.87,"BILLARD CLUB DE NICE"]
[152184,"DELAIRE Sylvain","R3",1.05,"SALON BILLARD CLUB"]
[22014,"DELATTRE Raymond","R2",1.76,"BILLARD CLUB FARENC"]
[149695,"DELMER Philippe","R4",0.74,"BILLARD CLUB CARPENTRASSIEN"]
[166346,"DELUC Bernard","R4",0.87,"BILLARD CLUB FARENC"]
[159076,"DEMERLIAC Bruno","R4",0.67,"BILLARD CLUB BERROIS"]
[22021,"DEMESSE Serge","R2",1.87,"BILLARD AMATEUR ROGNAC"]
[22027,"DESLOIRES Michel","R3",1.43,"BILLARD CLUB VINONNAIS"]
[142358,"DESMERO RAYMOND","R4",0.87,"BILLARD CLUB BERROIS"]
[22028,"DESPLANQUE Francis","R2",2.12,"BILLARD CLUB GARDEEN"]
[144569,"DI CINTIO Philippe","R2",1.65,"BILLARD CLUB AVIGNONNAIS"]
[142363,"DONABEDIAN Daniel","R3",1.02,"B.C. DE MANDELIEU LA NAPOULE"]
[13003,"DORNEL Gérard","R3",1.32,"ACAD.BILLARD ST RAPHAEL"]
[22039,"DOS SANTOS Francis","R1",3.27,"BILLARD CLUB SAUSSETOIS"]
[143143,"DOYEN Denis","R3",1.08,"B.C. DE MANDELIEU LA NAPOULE"]
[22042,"DRUINOT Dominique","R2",1.78,"BILLARD CLUB SAUSSETOIS"]
[109448,"DUBOC Claude","R2",2.5499999999999998,"BILLARD CLUB PHOCEEN"]
[13022,"DUBREUIL Franck","N3",5.28,"CAR BILLARD ROQUEBRUNE"]
[154651,"DUCA Alfonso","R4",0.43,"BILLARD CLUB FARENC"]
[138116,"DUFLOT Alain","R4",0.79,"BILLARD CLUB GARDEEN"]
[13037,"DUMET Bruno","N3",5.73,"BILLARD CLUB GARDEEN"]
[147554,"DUPERRAY Alex","R4",0.68,"BILLARD CLUB ORANGEOIS"]
[22049,"DURAND Frédéric","R3",1.66,"SALON BILLARD CLUB"]
[22050,"DURAND Hervé","N1",10.37,"SALON BILLARD CLUB"]
[22052,"DUSFOUR René","R3",1.39,"SALON BILLARD CLUB"]
[102285,"DUSSAULE Pierre","R2",2.1,"ACADEMIE DE BILLARD DE BOLLENE"]
[163467,"ELEOUET Daniel","R3",1.41,"BILLARD CLUB CARPENTRASSIEN"]
[117567,"ESTRUGO Henri","R4",0.52,"SALON BILLARD CLUB"]
[147622,"ESTABLIER Pierre","R4",0.4,"BILLARD CLUB GARDEEN","N.C. sera classé ligue après 2 tournois"]
[101511,"FAGET Francis","R2",2.09,"S. S. A. B. D AIX EN PROVENCE"]
[22065,"FAURE Emile","R3",1.5,"BILLARD CLUB ORANGEOIS"]
[22066,"FAVARIO Christian","R3",1.44,"ACADEMIE DE BILLARD DE BOLLENE"]
[22067,"FERAUD Gérard","N3",7.63,"ACADEMIE DE BILLARD DE BOLLENE"]
[129036,"FERHAT Achour","N3",7.85,"BILLARD CLUB VINONNAIS"]
[13111,"FERNANDEZ Marc","N3",6.95,"BILLARD CLUB BERROIS"]
[122658,"FERRO Philippe","R3",1.57,"CLUB BILLARD ISTREEN"]
[101139,"FONTAINE Dany","N3",6.84,"CAR BILLARD ROQUEBRUNE"]
[152014,"FORGET Lionel","R3",1.1599999999999999,"BILLARD CLUB BERROIS"]
[22082,"FOSSATI Bruno","R3",1.36,"BILLARD CLUB GARDEEN"]
[22084,"FRANCO Gilbert","R2",2.25,"BILLARD CLUB DE LA BAIE"]
[125666,"FRELON Thierry","R3",1.24,"BILLARD CLUB CARPENTRASSIEN"]
[159060,"FURNON Roger","R4",0.87,"BILLARD CLUB AVIGNONNAIS"]
[103216,"GABETTO Stéphane","R2",2.57,"BILLARD CLUB GARDEEN"]
[142316,"GALARDINI Richard","R3",1.48,"BILLARD CLUB SAUSSETOIS"]
[22092,"GANTOIS Gilles","N3",6.83,"BILLARD CLUB ORANGEOIS"]
[122653,"GANTOIS Nadine","R4",0.88,"ACADEMIE DE BILLARD DE BOLLENE"]
[22097,"GATTO Antoine","R3",1.1200000000000001,"BILLARD CLUB SAUSSETOIS"]
[116278,"GAVALDA Pierre","R2",2.78,"BILLARD CLUB CARPENTRASSIEN"]
[125944,"GAVANON André","R2",0,"BILLARD CLUB GARDEEN"]
[163279,"GELAS Bernard","R4",0.82,"BILLARD CLUB FARENC"]
[22101,"GEORGE Alain","R2",2.46,"ACADEMIE MUNICIPALE DE BILLARD"]
[22103,"GERARD Pascal","N1",18.93,"BILLARD CLUB DE NICE"]
[22104,"GERVAIS Guillaume","N3",9.1300000000000008,"BILLARD CLUB CAVAILLONNAIS"]
[101282,"GHU Gérard","R2",2.67,"BILLARD CLUB ORANGEOIS"]
[22108,"GIANNATTASIO Lucien","R2",2.52,"CLUB BILLARD ISTREEN"]
[118661,"GIBARROUX Christophe","R1",4.03,"BILLARD AMATEUR ROGNAC"]
[149390,"GIFFARD Philippe","R1",4.29,"BILLARD CLUB GARDEEN"]
[22115,"GIOVANNETTI Damien","R3",1.46,"BILLARD CLUB SAUSSETOIS"]
[129718,"GIRARD Jacques","R3",1.2,"B.C. DE MANDELIEU LA NAPOULE"]
[119705,"GODAERT Bernard","R4",0.92,"BILLARD CLUB SAUSSETOIS"]
[157852,"GODARD Pascal","R2",2.29,"BILLARD CLUB CARPENTRASSIEN"]
[120100,"GOMES Vitor","R2",2.61,"S. S. A. B. D AIX EN PROVENCE"]
[135012,"GOMEZ Tony","R3",1.35,"ACAD.BILLARD ST RAPHAEL"]
[131925,"GOUDENECHE Bernard","R3",1.82,"BILLARD CLUB FARENC"]
[22129,"GOUIRAN Georges","R3",1.25,"BILLARD CLUB SAUSSETOIS"]
[104054,"GOURSEAUD Yves","N3",5.92,"BILLARD CLUB ORANGEOIS"]
[149576,"GREGOIRE Jean-Claude","R3",0.95,"BILLARD CLUB ORANGEOIS"]
[135013,"GUERI Robert","R3",1.03,"ACADEMIE DE BILLARD DE BOLLENE"]
[22135,"GUERINEAU Thierry","N3",4.51,"BILLARD CLUB CAVAILLONNAIS"]
[110610,"GUES Joël","R4",0.76,"BILLARD CLUB FARENC"]
[104475,"GUEUG Pierre","R2",1.56,"ACADEMIE MUNICIPALE DE BILLARD"]
[151649,"GUEZOU Mathis","R4",0.48,"SALON BILLARD CLUB"]
[22137,"GUIBERT Jean-Marie","R2",2.29,"CLUB BILLARD ISTREEN"]
[109915,"GUSTIN André","R4",0.75,"CLUB BILLARD ISTREEN"]
[22138,"GUTIERREZ François","R3",1.04,"BILLARD CLUB PHOCEEN"]
[11966,"HAHN Daniel","R3",1.64,"BILLARD CLUB PHOCEEN"]
[22141,"HAROUTUNIAN Pierre","R3",1.22,"BILLARD CLUB SAUSSETOIS"]
[137523,"HAZE Patrick","R3",1.56,"BILLARD CLUB CAVAILLONNAIS"]
[128464,"HECQUET Emile","R3",1.49,"BILLARD CLUB CAVAILLONNAIS"]
[119933,"HERREMAN Serge","R3",1.25,"BILLARD CLUB GARDEEN"]
[132460,"HMAYDA Youssef","N3",5.53,"BILLARD CLUB DE NICE"]
[120276,"JAVEY Jean François","R4",0.91,"BILLARD CLUB DE LA BAIE"]
[136543,"JOLY François","R3",1.07,"BILLARD CLUB CAVAILLONNAIS"]
[22173,"KOSKACH Jean-Paul","N3",5,"BILLARD CLUB PHOCEEN"]
[168708,"LACROIX Jean Marc","R4",0.6,"BILLARD CLUB FARENC","N.C. sera classé ligue après 2 tournois"]
[109977,"LACOSSE Jean Paul","N3",7.5,"BILLARD CLUB DE LA BAIE"]
[151312,"LAGIERE Christian","R4",0.85,"BILLARD CLUB DE LA BAIE"]
[168288,"LANNURIEN Thierry","R2",2.76,"BILLARD CLUB GARDEEN",","]
[22190,"LAPLANCHE Yvon","R3",1.75,"CAR BILLARD ROQUEBRUNE"]
[22192,"LATIL Yves","R3",1.36,"BILLARD CLUB SISTERONNAIS"]
[22195,"LAVASTROU Roger","R3",1.3,"BILLARD CLUB AVIGNONNAIS"]
[163278,"LE FAUCHEUR Laurent","R3",0.99,"BILLARD CLUB FARENC"]
[110379,"LE MARTINET Robert","R3",1.39,"BILLARD CLUB DE LA BAIE"]
[136216,"LE MOING François","R3",1.1499999999999999,"BILLARD CLUB DE NICE"]
[13510,"LE RAY Jean Claude","R2",1.9,"BILLARD CLUB DE LA BAIE"]
[110799,"LEBAR Patrick","R1",3.44,"BILLARD AMATEUR ROGNAC"]
[22200,"LEBRIEZ Michel","R2",2.13,"B.C. DE MANDELIEU LA NAPOULE"]
[141504,"LECOQ Arnaud","R3",1.68,"SALON BILLARD CLUB"]
[151648,"LECOQ SYLVIE","R4",0.24,"SALON BILLARD CLUB"]
[135537,"LEDU Gérard","R4",0.44,"BILLARD CLUB CARPENTRASSIEN"]
[132349,"LEFEBVRE René","R3",0.99,"BILLARD CLUB DE NICE"]
[22206,"LEROY André","R3",1.3,"B.C. DE MANDELIEU LA NAPOULE"]
[131535,"LEVAVASSEUR Robert","R1",4.12,"BILLARD CLUB SISTERONNAIS"]
[150633,"LEVEQUE Arnaud","R4",0.89,"BILLARD CLUB BERROIS"]
[141067,"LEVEQUE David","R2",2,"BILLARD CLUB BERROIS"]
[22209,"LIEGEOIS Dominique","R1",3.28,"ACADEMIE DE BILLARD DE BOLLENE"]
[13596,"LIENHARDT Jean Claude","R1",4.4800000000000004,"BILLARD CLUB DE LA BAIE"]
[168722,"LISSAJOUX Jean Claude","R4",0.89,"BILLARD CLUB SAUSSETOIS","N.C. sera classé ligue après 2 tournois"]
[146375,"LISI Roger","R4",0.89,"BILLARD CLUB BERROIS"]
[13620,"LUBAC Samuel","N1",10.57,"ACADEMIE DE BILLARD DE MENTON"]
[162076,"LUCENET Paul","R2",2.94,"CLUB BILLARD ISTREEN"]
[22221,"LUVISON Jean","R4",0.82,"SALON BILLARD CLUB"]
[114274,"MACIA René","N3",5.83,"ACADEMIE MUNICIPALE DE BILLARD"]
[136398,"MAI Vin","R3",1.22,"BILLARD CLUB VINONNAIS"]
[164991,"MANGROLLE Didier","R4",0.67,"ACADEMIE MUNICIPALE DE BILLARD"]
[110085,"MARCH Gérald","R3",1.36,"BILLARD CLUB FARENC"]
[148327,"MARCHETTO/Hugo","R4",0.62,"BILLARD AMATEUR ROGNAC"]
[103565,"MARCHIOLLI Laure","R4",0.31,"BILLARD CLUB BERROIS"]
[108280,"MARCIANO Georges","R2",1.94,"CAR BILLARD ROQUEBRUNE"]
[137032,"MARTIN Thomas","R3",1.35,"ACADEMIE DE BILLARD DE BOLLENE"]
[15513,"MASSON Denis","R3",1.52,"BILLARD CLUB GARDEEN"]
[159647,"MASSOT Sebastien","R3",1.54,"BILLARD CLUB SISTERONNAIS"]
[129498,"MATHIEU Claude","R3",1.05,"BILLARD CLUB BERROIS"]
[17615,"MAUDUIT Didier","R3",1.35,"CLUB BILLARD ISTREEN"]
[149391,"MAURON Bernard","R3",1.79,"BILLARD CLUB GARDEEN"]
[22248,"MAZAURIC Stéphane","N1",9.51,"B.C. DE MANDELIEU LA NAPOULE"]
[144802,"MELLET pierre","R2",1.91,"ACADEMIE DE BILLARD DE BOLLENE"]
[22251,"MENCO Francis","N3",5.31,"SALON BILLARD CLUB"]
[157382,"MENENDEZ LORENZO","R4",0.47,"BILLARD CLUB SAUSSETOIS"]
[152604,"METAIS Alban","R3",1.48,"BILLARD CLUB CARPENTRASSIEN"]
[103622,"MEUNIER Gilles","R2",1.96,"ACADEMIE DE BILLARD DE MENTON"]
[22260,"MEYER Luc","R2",2.46,"BILLARD CLUB GARDEEN"]
[133204,"MICHEL-GROSJEAN Cédric","R2",3.17,"ACADEMIE MUNICIPALE DE BILLARD"]
[133600,"MICO José","R3",0.96,"ACADEMIE DE BILLARD DE BOLLENE"]
[22266,"MOGLIA Emile","R1",4.13,"BILLARD CLUB CAVAILLONNAIS"]
[22268,"MOLAND Philippe","R2",2.67,"ACAD.BILLARD ST RAPHAEL"]
[14997,"MONTAY Jean-Claude","R2",1.51,"ACADEMIE DE BILLARD DE BOLLENE"]
[147624,"MOREELS Bernard","R4",0.7,"BILLARD CLUB GARDEEN","N.C. sera classé ligue après 2 tournois"]
[101279,"MORENO Bastien","N3",6.91,"BILLARD CLUB BERROIS"]
[22278,"MORPOURGO Simon","R3",1.04,"BILLARD CLUB BERROIS"]
[151456,"MOUSSIER Patrick","R3",0.89,"BILLARD CLUB DE NICE"]
[109063,"MUNOS Jean","N3",2.91,"BILLARD CLUB SAUSSETOIS"]
[109708,"MUNOS Vincent","R2",2.42,"BILLARD AMATEUR ROGNAC"]
[141788,"N GUYEN VAN DUC Max","R3",1.02,"BILLARD CLUB BERROIS"]
[154572,"NATELLA ROGER","R3",1.64,"BILLARD CLUB DE NICE"]
[137031,"OUDIA Dylan","R4",0.3,"ACADEMIE DE BILLARD DE BOLLENE"]
[128468,"OUDOUX Gérard","R3",1.08,"BILLARD CLUB GARDEEN"]
[150400,"PACZESNY FABRICE","R3",1.31,"BILLARD CLUB FARENC"]
[22302,"PAGANONI Georges","N3",3.7,"BILLARD CLUB GARDEEN"]
[118659,"PAQUET Michel","R4",0.66,"BILLARD CLUB AVIGNONNAIS"]
[22308,"PARINELLO René","R1",4.08,"BILLARD CLUB GARDEEN"]
[105442,"PARIZE Michel","R1",3.76,"B.C. DE MANDELIEU LA NAPOULE"]
[129332,"PASTOR Paul","R3",1.07,"ACADEMIE DE BILLARD DE BOLLENE"]
[153692,"PAVIOT Didier","R3",1.51,"BILLARD CLUB GARDEEN"]
[22314,"PEGULLO Patrick","R2",1.88,"BILLARD CLUB GARDEEN"]
[141673,"PELLAT Francis","R2",2.41,"BILLARD CLUB SISTERONNAIS"]
[144779,"PELOUIN Jean-François","N1",16.329999999999998,"BILLARD CLUB DE LA BAIE"]
[132787,"PENEDO Jonathan","R2",2.46,"BILLARD CLUB VINONNAIS"]
[103577,"PENEDO Manuel","R1",4.72,"BILLARD CLUB VINONNAIS"]
[132699,"PEREIRA Nicolas","R4",0.89,"BILLARD CLUB GARDEEN"]
[130773,"PEREZ Christian","R3",1.1200000000000001,"CLUB BILLARD ISTREEN"]
[22319,"PERIES Michel","R2",1.97,"BILLARD CLUB SISTERONNAIS"]
[15932,"PERRIN Bernard","R3",1.24,"BILLARD CLUB FARENC"]
[22325,"PESENTI Pierre","N1",10.83,"BILLARD CLUB DE NICE"]
[129330,"PICOLLET Manuel","N3",5.61,"BILLARD AMATEUR ROGNAC"]
[22330,"PIELIN Pascal","R1",4.49,"SALON BILLARD CLUB"]
[112316,"PIGNATEL Florent","N3",7.42,"BILLARD CLUB CAVAILLONNAIS"]
[105404,"PINARD Patrice","R1",3.68,"SALON BILLARD CLUB"]
[22332,"PINNA Alain","N1",22.13,"SPORT AMAT.DE BILLARD MARSEILLAIS"]
[148229,"PINNA Vincent","R4",0.47,"SPORT AMAT.DE BILLARD MARSEILLAIS"]
[22335,"PIONE Guy","R2",2.35,"BILLARD CLUB BERROIS"]
[22336,"PIQUET Victor","R4",0.9,"SALON BILLARD CLUB"]
[22341,"POIRET Jean-Marc","R3",1.31,"ACAD.BILLARD ST RAPHAEL"]
[108010,"POIRIER Dominique","R3",1.51,"ACAD.BILLARD ST RAPHAEL"]
[22347,"POUJOL JEAN PAUL","R2",1.1100000000000001,"BILLARD CLUB AVIGNONNAIS"]
[144719,"POULAIN Frédéric","R2",1.89,"BILLARD CLUB ORANGEOIS"]
[22348,"POURCHASSE Joël","R4",0.81,"BILLARD CLUB GARDEEN"]
[22349,"POZNANSKI Jean-Michel","R2",2.99,"SALON BILLARD CLUB"]
[105485,"POZNANSKI Loïc","R2",2.64,"SALON BILLARD CLUB"]
[17857,"PRACHAR Jean Pierre","R3",0.99,"ACAD.BILLARD ST RAPHAEL"]
[143885,"PROFIT Gilbert","R4",0.48,"BILLARD CLUB DE NICE"]
[121022,"PUJA André","R3",1.21,"BILLARD CLUB BERROIS"]
[22353,"PUT Marcel","R4",0.74,"BILLARD CLUB CARPENTRASSIEN"]
[22354,"QUANTIN Michel","R2",2.65,"BILLARD CLUB FARENC"]
[136544,"QUEZEL André","R4",0.73,"BILLARD CLUB AVIGNONNAIS"]
[164826,"RATON Patrice","R4",0.74,"B.C. DE MANDELIEU LA NAPOULE"]
[103561,"RAVERDINO Julien","N3",5.53,"ACADEMIE MUNICIPALE DE BILLARD"]
[119696,"REVALOR Michel","R2",1.96,"BILLARD CLUB SAUSSETOIS"]
[22366,"RIBOLLA Patrice","N3",5.15,"B.C. DE MANDELIEU LA NAPOULE"]
[133646,"RICART André","R3",1.45,"CLUB BILLARD ISTREEN"]
[137033,"RICHARD Mathieu","R4",0.34,"ACADEMIE DE BILLARD DE BOLLENE"]
[22367,"RICHARD Guy","R2",2.5,"BILLARD CLUB GARDEEN","N.C. sera classé ligue après 2 tournois"]
[125943,"RIFFET Bernard","R3",1.1399999999999999,"BILLARD CLUB AVIGNONNAIS"]
[22372,"RIGNOLS Philippe","R2",1.81,"BILLARD CLUB CAVAILLONNAIS"]
[134183,"ROBBE Raymond","R2",1.86,"BILLARD CLUB SAUSSETOIS"]
[22450,"ROBERT Didier","N3",6.52,"BILLARD CLUB AVIGNONNAIS"]
[124552,"ROBERT Jean","R2",2.19,"SALON BILLARD CLUB"]
[134843,"ROGER Gérard","R4",0.81,"BILLARD CLUB CAVAILLONNAIS"]
[22380,"ROLLAND Jacques","R3",1.24,"CLUB BILLARD ISTREEN"]
[101518,"ROUGON Robert","N3",3.32,"BILLARD CLUB BERROIS"]
[22384,"ROUX Claude","R1",3.84,"BILLARD CLUB SAUSSETOIS"]
[136546,"SALAMA Alain","R3",1.32,"BILLARD CLUB CAVAILLONNAIS"]
[22391,"SANTIAGO Jean-Joseph","N3",5.15,"BILLARD CLUB SAUSSETOIS"]
[14138,"SARRALDE Louis","R4",0.71,"BILLARD CLUB CAVAILLONNAIS"]
[136083,"SAUVAIRE Daniel","R2",1.51,"BILLARD CLUB BERROIS"]
[22398,"SAVINA Gérard","R3",1.04,"SALON BILLARD CLUB"]
[122939,"SAVOIA Mickaël","R3",1.03,"BILLARD CLUB SAUSSETOIS"]
[113222,"SAVOIA Patrick","R3",1.44,"BILLARD CLUB SAUSSETOIS"]
[149694,"SCHAFER Ernest Robert","R3",1.01,"BILLARD CLUB CARPENTRASSIEN"]
[22399,"SCHEKLER Jean Florian","R2",1.68,"ACAD.BILLARD ST RAPHAEL"]
[136540,"SCHENK Robert","R4",0.69,"BILLARD CLUB DE NICE"]
[22401,"SCHMIDT Claude","N1",7.38,"BILLARD CLUB GARDEEN"]
[152347,"SEROR Bernard","R4",0.89,"B.C. DE MANDELIEU LA NAPOULE"]
[148608,"SEYNHAEVE Baudouin","N1",18.75,"BILLARD CLUB GARDEEN"]
[167333,"SETTIMI Jean Louis","R4",0.94,"BILLARD CLUB DE NICE","N.C. sera classé ligue après 2 tournois"]
[163238,"SICARD Georges","R4",0.73,"BILLARD CLUB SISTERONNAIS"]
[10203,"SIMON Gérard","R2",2.36,"BILLARD CLUB AVIGNONNAIS"]
[22412,"SINANIAN Jean-Paul","R1",4.5999999999999996,"BILLARD CLUB PHOCEEN"]
[103578,"SOLTANI Omar","R1",3.54,"BILLARD CLUB VINONNAIS"]
[149696,"SOUTERAND Christian","R4",0.92,"BILLARD CLUB CARPENTRASSIEN"]
[112421,"SQUIZZARO Bernard","R3",1.01,"BILLARD CLUB PHOCEEN"]
[20790,"STEINMANN Sébastien","R3",1.45,"ACAD.BILLARD ST RAPHAEL"]
[125931,"STEPHAN Olivier","R1",2.4900000000000002,"BILLARD CLUB SISTERONNAIS"]
[144720,"STERCKX Pierre","R4",0.81,"BILLARD CLUB ORANGEOIS"]
[165039,"SUEUR Pascal","R3",1.07,"B.C. DE MANDELIEU LA NAPOULE"]
[22429,"TARDIEUX Luc","R2",3.02,"BILLARD CLUB BERROIS"]
[133907,"TARDY Jean Claude","R4",0.88,"BILLARD CLUB AVIGNONNAIS"]
[143024,"TARDY Pierre-Yves","R3",1.24,"B.C. DE MANDELIEU LA NAPOULE"]
[118668,"TATTIS Henri","R3",1.49,"BILLARD CLUB SAUSSETOIS"]
[123701,"TELOT Dominique","R2",2.4300000000000002,"CAR BILLARD ROQUEBRUNE"]
[148464,"TERZIAN Bernard","R3",1.44,"BILLARD AMATEUR ROGNAC"]
[111163,"TOLEDANO Armand","R1",3.37,"BILLARD CLUB SAUSSETOIS"]
[168687,"THOMAS Philippe","R4",0.4,"BILLARD CLUB GARDEEN","N.C. sera classé ligue après 2 tournois"]
[148252,"TIMSIT Serge","R4",0.4,"BILLARD CLUB GARDEEN","N.C. sera classé ligue après 2 tournois"]
[132786,"TONNELIER Jean Pierre","R3",1.47,"BILLARD CLUB VINONNAIS"]
[135554,"TORES Jean Luc","R2",2.21,"BILLARD AMATEUR ROGNAC"]
[139062,"TOUREILLE ALAIN","R4",0.9,"BILLARD CLUB SISTERONNAIS"]
[22444,"TRASTOUR Fréderic","R1",4.5,"ACADEMIE MUNICIPALE DE BILLARD"]
[18691,"TREMEAU Philippe","N3",7.78,"CAR BILLARD ROQUEBRUNE"]
[22446,"TRIVINO René","N3",3.76,"BILLARD CLUB GARDEEN"]
[18722,"TROEGNER Daniel","R1",4.74,"CAR BILLARD ROQUEBRUNE"]
[107457,"TRUCCO Damien","N3",5.8,"BILLARD CLUB GARDEEN"]
[22448,"TRUCCO Dominique","N3",6.32,"BILLARD CLUB GARDEEN"]
[118651,"TRUEL Jacques","R3",1.38,"B.C. DE MANDELIEU LA NAPOULE"]
[22456,"VASCONE Johny","R2",1.95,"SALON BILLARD CLUB"]
[129880,"VASSE Jean-Pierre","R4",0.55000000000000004,"BILLARD CLUB DE LA BAIE","N.C. sera classé ligue après 2 tournois"]
[163827,"VASTEL Bernard","N3",8,"B.C. DE MANDELIEU LA NAPOULE","N.C. sera classé ligue après 2 tournois"]
[125928,"VERRIER Jean Pierre","N3",5.37,"SALON BILLARD CLUB"]
[22467,"VIBOUREL Etienne","R2",2.15,"BILLARD CLUB GARDEEN"]
[149593,"VIDAL Jean Pierre","R4",0.84,"BILLARD CLUB AVIGNONNAIS"]
[164317,"VILLARD Patrice","R4",0.55000000000000004,"BILLARD CLUB CARPENTRASSIEN"]
[101485,"VILLASEVIL Antonio","R2",2.88,"BILLARD AMATEUR ROGNAC"]
[22472,"VINCENT Régis","R3",1.1000000000000001,"BILLARD AMATEUR ROGNAC"]
[147607,"VIOU Gerard","R2",2.36,"BILLARD CLUB FARENC"]
[138731,"VISCONTI Jean","R3",1.35,"BILLARD AMATEUR ROGNAC"]
[22475,"VITALE Benoit","R3",1.07,"BILLARD CLUB DE NICE"]
[119674,"VITALIEN Pierre","R2",2.08,"BILLARD CLUB ORANGEOIS"]
[22476,"VIVALDI André","N1",13.08,"BILLARD CLUB VINONNAIS"]
[154571,"VUILLAUME Jean Claude","R4",0.94,"BILLARD CLUB DE NICE"]
[112318,"VUILLERMET Pierre","R3",1.58,"BILLARD CLUB FARENC"]
[22480,"VULTAGGIO Pierre","R2",2.06,"B.C. DE MANDELIEU LA NAPOULE"]
[22483,"WILLETTE Marc","R2",2.2200000000000002,"CLUB BILLARD ISTREEN"]
[101283,"WOILLEZ Francis","R4",0.81,"BILLARD CLUB AVIGNONNAIS"]
[152049,"XUEREF Jean Marie","R2",2.65,"BILLARD CLUB DE LA BAIE"]
[134311,"ZANDRINO Alain","R2",2.38,"BILLARD CLUB BERROIS"]
[144788,"ZOPPI Aimé","R1",3.58,"BILLARD CLUB VINONNAIS"]
[125457,"ZOPPI Cédric","Master",52.13,"BILLARD CLUB VINONNAIS"]

{"sheet":"RS vétérans","index":3,"n_rows":60,"n_cols":1,"rows_kept":60,"cut":false,"hidden":false,"merged":[]}
["Article 1   "]
["Dans chaque mode de jeux (3bandes et libre) c’est le club qui est engagé (une seule équipe) ; tous les joueurs de 60 ans et plus au 1 septembre de la saison en cours peuvent participer à condition d’être licenciés FFB et LMB du club engagé."]
["Les clubs doivent s’engager avant le dimanche 15 septembre 2019 auprès du responsable vétérans de la Commission Sportive Ligue (Dany Sauvaire)."]
["Le bordereau d’engagement est téléchargeable sur le site LMB « carambole – vétérans » dès le mois de juin 2019; l’engagement du club sera validé après réception du bordereau et des droits d’engagement (20€ par mode de jeux)."]
["Les clubs engagés seront visibles sur site LMB : Carambole – rubrique  Vétérans. "]
[]
["Article 2"]
["Les rencontres ont lieu en priorité en semaine, éventuellement le samedi ou dimanche sans concurrencer les compétitions officielles, prévues au calendrier LMB."]
["Les rencontres seront organisées selon le nombre de clubs engagés."]
["Toutes les équipes de la même poule dans la catégorie (3B ou Libre) engagées doivent se rencontrer. "]
["Les clubs ont la possibilité-si les 2 clubs sont d’accord-de faire le même jour l’aller et le retour si tel est leur choix, pour la rencontre retour le club receveur devient le club visiteur et vice versa."]
["Le nombre de poules seront déterminées géographiquement selon le nombre de clubs engagés."]
["Le calendrier vétérans sera envoyé à chaque club engagé dès les inscriptions finies « 16/09/2019 » et visible sur site LMB rubrique vétérans. "]
[" "]
["Article 3 "]
["Un club qui ne se présente pas à la date prévue est forfait pour tout le challenge.  "]
["Le ou les clubs adverses prennent la moitié des points de ou des rencontres (aller - retour)."]
["Une date de rencontre peut être modifiée si les deux clubs sont d’accord et avisée par email obligatoirement le responsable vétérans de la C.S. ligue."]
[]
["Article 4"]
["Les feuilles des résultats doivent être téléchargées sur le site LMB « rubrique vétérans » juste avant la rencontre, car il peut y avoir des changements en cours de saison (joueur, distance, etc…) si la feuille de résultats n’est pas la bonne édition la rencontre ne sera pas validée."]
["Le club qui a la charge de remplir la feuille des résultats est seul responsable de toute anomalie et n’aura aucun recours s’il n’a pas téléchargé la dernière version de feuille de résultats et se verra retirer tous les points de ladite rencontre au bénéfice du club visiteur."]
[]
["Article 5"]
["-           A la fin des rencontres ALLER et  RETOUR si cela est nécessaire, le forfait sera prononcé par le responsable vétérans de la C.S. ligue à l’encontre de l’une ou l’autre équipe ou bien aux deux (si pas d’entente de date)."]
["-          Deux forfaits dans la saison entraînent l'exclusion de l'équipe pour le challenge, ainsi que la  suppression des résultats. "]
[]
["Article 6"]
["-          Ces challenges se jouent à la partie libre et au 3 bandes par handicap. La distance de chaque joueur est celle prévue sur le tableau distance vétérans 2019 – 2020 « article 10 ».  "]
["-          Un joueur classifié qui dépasse sa moyenne de plus de 10 % verra sa distance réactualisée par le responsable ligue à la distance de la catégorie immédiatement supérieure pour la prochaine rencontre."]
["-          Un joueur non classifié FFB sera classé  LMB par le responsable vétérans de la C.S. ligue après que le club en est fait la demande auprès du responsable vétérans LMB. "]
[]
["Article 7"]
["Déroulement d’une rencontre hors finale: "]
["-          R = équipe receveuse  -  V = équipe visiteuse."]
["-          Les joueurs R1, R2, R3, V1, V2, V3 sont désignés par le responsable de l’équipe en début de rencontre."]
["-          Pour les rencontres éliminatoires le joueur 1 rencontre les trois joueurs de l’équipe adverse, le joueur 2 idem et le joueur 3 idem, (= 9 matchs par rencontre)"]
["-          Le directeur de jeu ou à défaut le capitaine de l’équipe receveuse veille à ce que le déroulement de la rencontre se fasse dans la convivialité, mais sérieusement (joueurs licencier FFB et LMB, jouent bien dans sa catégorie, avoir 60ans ou plus au 01/09/2019 de la saison en cour)."]
["-          Les feuilles de résultats doivent être correctement remplies par le club receveur et envoyées au responsable vétérans de la C.S. ligue après la fin de la rencontre."]
["-          Toutes anomalies constatées auront pour conséquence le retrait des résultats de la rencontre.  "]
["-          Les résultats des matchs faits ne doivent pas être saisis sur le site fédéral FFBSPORTIF"]
["-          Les compétitions par Handicap ne sont pas homologuées par la FFB."]
["-          Les trois joueurs de la rencontre (3 tours de jeux) peuvent être changés à chaque tour de jeu, à condition de l’avoir déclaré au début de la rencontre (aller ou retour)."]
["-          Le quota de joueurs ne doit en aucun cas dépasser 6 joueurs par rencontre (aller ou retour)."]
["-          Toutes les rencontres et les finales se jouent sans limitation de reprise et avec reprise égalisatrice."]
["-          Prolongation si nécessaire, selon le R.S. de la commission sportive carambole LMB. "]
["-          Chaque joueur joue sa distance sur 2.80 ou 3.10 partie libre et 3 bandes,  mais à la libre les coins restent P.C. pour les R4, R3, R2, R1 et G.C. pour les M, N1, N3 sur 2.80 ou 3.10. "]
[]
["Points match: - Match Gagné = 2 Pts – Match Perdu = 0 Pt"]
["Article 8"]
["-          La finale se joue entre  les 4 clubs  qui ont fait le plus de points rencontres, en cas d’égalité les équipes seront départagées pas la M.G."]
["-           Elle se joue dans un club choisi par le responsable vétérans de la C.S. ligue ainsi que le déroulement de ladite finale (nombre de billards, nombre de matchs, etc..)."]
["-          Ne peuvent faire la finale que des joueurs qui ont joué au minimum une rencontre vétérans de la saison en cours dans le mode de jeux concerné, 3 joueurs uniquement par équipe finaliste sont autorisés pour la finale à condition de l’avoir déclaré au responsable vétérans de la C.S. ligue en vue de la préparation  de ladite finale et donné le rang dans l’équipe « N° 1 etc.. »."]
["-          Une dérogation peut être faite par le responsable vétérans de la C.S. ligue pour le nombre de clubs finalistes."]
[]
["Article 9"]
["-          Repas de clôture"]
["-          Le club organisateur de la finale du challenge aura en charge d'organiser un repas convivial."]
["-          Une quote-part sera demandée aux participants (la quote-part est la différence entre le prix total de la prestation et la subvention de la ligue, divisée par le nombre de participants)."]
["-          La Ligue participera financièrement à cette manifestation en donnant la subvention prévue sur la condition financière ligue téléchargeable sur le site LMB."]